bitfinex/quotes_ETHUSD_20240721
["timestamp","ask_amount","ask_price","bid_price","bid_amount"]
[1721584793430,12.73569,3476.1,3474.1,2.87841]
[1721584793635,2.87703,3475.8,3474.2,3.42835]
[1721584793846,5.25569,3476.1,3474.2,0.55]
[1721584794058,0.525569,3476.0,3474.2,0.55]
[1721584794263,0.525569,3476.0,3474.4,2.87819]
[1721584794429,0.525569,3476.0,3474.6,2.87802]
[1721584794797,0.525569,3476.0,3474.5,2.87804]
[1721584795069,2.87654,3476.4,3474.8,2.87786]
[1721584795224,2.75816466,3476.6,3474.6,3.55]
[1721584795423,2.87654,3476.4,3474.7,2.87794]
[1721584795721,2.75816466,3476.6,3474.6,2.87802]
[1721584795921,0.58276552,3476.5,3474.7,0.587802]
[1721584796116,2.87679,3476.1,3474.7,0.587802]
[1721584796419,2.87654,3476.4,3474.7,0.587802]
[1721584796959,2.87671,3476.2,3474.7,0.587802]
[1721584797121,2.87671,3476.2,3474.4,5.87818]
[1721584797327,2.87671,3476.2,3474.5,0.55]
[1721584797529,2.87698,3475.9,3474.5,0.55]
[1721584797766,2.87679,3476.1,3474.5,3.4281]
[1721584797934,0.07193288,3476.3,3474.5,0.55]
[1721584798133,2.8767,3476.2,3474.7,2.87792]
[1721584798334,2.8768,3476.1,3474.5,2.8781]
[1721584798658,2.87696,3475.9,3474.3,0.55]
[1721584798866,2.87696,3475.9,3474.3,3.55]
[1721584799366,2.87696,3475.9,3474.2,2.87835]
[1721584799665,0.287696,3475.8,3474.4,2.87811]
[1721584800571,0.287696,3475.8,3474.5,2.87802]
[1721584800871,0.07193398,3476.1,3474.0,2.87847]
[1721584801087,2.87713,3475.7,3474.2,2.87835]
[1721584801287,2.87739,3475.4,3473.5,2.4836]
[1721584801588,2.4111,3476.1,3473.9,2.8786]
[1721584801738,2.4111,3476.1,3473.6,2.87877]
[1721584801739,0.73425437,3476.0,3473.6,2.87877]
[1721584801940,2.87738,3475.4,3473.7,2.87877]
[1721584802236,2.601,3474.4,3473.3,2.87906]
[1721584802677,2.601,3474.4,3473.1,2.87925]
[1721584803033,2.601,3473.9,3472.8,2.90612463]
[1721584803235,2.601,3473.4,3472.6,2.87968]
[1721584803537,2.601,3473.4,3472.5,0.45133574]
[1721584803849,2.601,3473.4,3472.1,2.88002]
[1721584804052,2.601,3473.4,3472.2,2.88001]
[1721584804864,2.601,3473.4,3472.0,2.88018]
[1721584805067,2.601,3472.9,3472.4,2.87984]
[1721584805270,2.601,3472.9,3472.2,2.88]
[1721584805496,2.59990681,3472.9,3472.2,2.88]
[1721584805689,2.59990681,3472.9,3471.8,2.88028]
[1721584806190,2.4111,3473.6,3471.1,1.7465]
[1721584806191,2.601,3471.9,3471.1,2.88088]
[1721584806490,2.601,3471.9,3471.0,2.9066]
[1721584806695,2.601,3471.9,3471.0,0.0256]
[1721584806904,5.202,3471.4,3471.0,0.0256]
[1721584807193,5.202,3471.4,3469.3,0.45170822]
[1721584807194,2.601,3470.6,3469.3,0.45170822]
[1721584807399,2.601,3470.6,3469.0,2.4608]
[1721584807400,2.601,3470.6,3469.5,2.88225]
[1721584807689,2.601,3470.6,3469.1,2.88258]
[1721584807851,2.601,3470.6,3469.0,2.4608]
[1721584807852,2.601,3471.4,3470.6,2.88134]
[1721584808054,2.601,3471.4,3469.1,3.034]
[1721584808291,2.601,3471.4,3469.5,2.88219]
[1721584808619,2.601,3470.9,3469.6,0.288219]
[1721584808887,2.601,3471.4,3469.6,0.288219]
[1721584809099,2.601,3471.4,3470.0,2.88178]
[1721584809390,2.48311739,3472.2,3469.6,2.8821]
[1721584809391,2.601,3470.8,3469.6,2.8821]
[1721584809896,2.4493,3471.0,3469.0,2.4608]
[1721584810057,2.601,3470.3,3469.3,2.88239]
[1721584810250,2.601,3470.3,3469.3,2.88242]
[1721584810476,2.601,3469.8,3468.6,2.88296]
[1721584810996,2.601,3469.8,3468.7,2.88292]
[1721584811356,2.601,3469.8,3468.2,2.301]
[1721584811357,2.601,3469.8,3468.5,2.88308]
[1721584811588,2.601,3469.3,3468.2,2.8833]
[1721584811754,2.601,3469.3,3467.9,0.45182788]
[1721584812185,2.601,3469.3,3467.9,3.33538788]
[1721584812456,2.601,3469.3,3468.2,2.8833]
[1721584812746,2.601,3469.3,3467.7,2.301]
[1721584812910,2.601,3469.3,3468.1,2.88341]
[1721584813231,2.601,3469.3,3468.3,2.88325]
[1721584813232,0.2601,3469.2,3468.3,2.88325]
[1721584813439,2.601,3469.3,3468.4,2.88316]
[1721584813738,2.601,3469.3,3467.9,2.88355]
[1721584813949,2.601,3469.3,3468.1,2.88342]
[1721584814237,2.601,3469.8,3468.8,2.88283]
[1721584814740,2.601,3469.8,3468.2,3.0]
[1721584814741,2.601,3469.8,3468.9,2.88275]
[1721584815097,2.601,3469.8,3468.7,2.8829]
[1721584815296,2.601,3469.8,3468.2,3.0]
[1721584815297,3.10603,3469.8,3468.5,2.88306]
[1721584815500,2.601,3468.8,3468.0,0.1513563]
[1721584815710,2.601,3468.8,3468.3,2.88325]
[1721584815940,2.601,3469.3,3468.1,2.88341]
[1721584816149,0.2601,3469.2,3468.1,2.88341]
[1721584816546,0.2601,3469.2,3468.0,0.1513563]
[1721584816744,2.601,3468.8,3468.0,0.1513563]
[1721584816943,2.601,3469.3,3468.0,0.1513563]
[1721584817453,2.601,3469.3,3468.4,2.88316]
[1721584817950,2.601,3469.3,3468.0,0.1513563]
[1721584818260,2.601,3469.3,3468.0,0.60339675]
[1721584818460,3.14263,3469.2,3468.0,0.60339675]
[1721584818674,2.3786,3468.7,3468.0,0.60339675]
[1721584819745,2.3786,3468.7,3468.0,0.1513563]
[1721584820422,2.45067714,3468.7,3468.0,0.1513563]
[1721584820623,2.601,3468.3,3468.0,0.1513563]
[1721584821430,0.2601,3469.2,3468.0,0.1513563]
[1721584821671,0.2601,3469.2,3468.2,2.88325]
[1721584821841,0.2601,3469.2,3468.1,0.55]
[1721584822168,0.30652216,3469.1,3468.1,0.55]
[1721584822969,2.3786,3470.0,3468.1,0.55]
[1721584823168,7.48,3470.5,3468.2,3.034]
[1721584823377,4.9796,3470.7,3468.8,2.3028]
[1721584823693,2.601,3470.7,3469.7,2.88204]
[1721584823899,2.601,3470.2,3469.0,2.8826]
[1721584824048,2.601,3470.2,3469.1,0.55]
[1721584824746,2.601,3470.2,3469.1,6.43257]
[1721584825090,5.48268,3470.2,3469.1,0.55]
[1721584825391,5.48268,3470.2,3468.0,3.1853563]
[1721584825392,2.601,3469.2,3468.0,3.0348463]
[1721584825595,0.49796,3469.1,3468.0,0.1513563]
[1721584826045,2.601,3468.7,3468.0,0.1513563]
[1721584827199,5.48392,3468.7,3468.0,0.1513563]
[1721584827550,2.601,3468.7,3468.0,0.1513563]
[1721584827761,2.601,3468.2,3468.0,0.1513563]
[1721584827962,0.2601,3468.1,3468.0,1e-08]
[1721584828246,2.88359,3467.9,3466.0,2.88515]
[1721584828544,0.2601,3468.1,3466.0,0.45221575]
[1721584828760,0.2601,3468.1,3466.4,2.88481]
[1721584829072,0.2601,3468.1,3465.7,2.8854]
[1721584829073,5.62675,3467.7,3465.7,2.8854]
[1721584829257,3.19713216,3468.0,3464.9,2.3028]
[1721584829258,2.743,3467.0,3464.9,2.3028]
[1721584829459,2.8846,3466.7,3465.1,0.45230419]
[1721584829884,2.88442,3466.9,3465.1,0.45230419]
[1721584830075,2.81512784,3467.0,3465.1,0.45230419]
[1721584830283,2.81512784,3467.0,3465.2,0.27551042]
[1721584830284,0.28151278,3466.9,3465.2,0.27551042]
[1721584830597,8.0016,3468.2,3466.3,2.8849]
[1721584830763,0.07210436,3467.9,3466.3,2.8849]
[1721584830961,0.38570175,3468.0,3466.3,2.8849]
[1721584831233,0.31359216,3468.0,3466.5,2.88472]
[1721584831385,2.88348,3468.1,3465.4,2.88563]
[1721584831386,2.8837,3467.8,3466.3,2.88491]
[1721584831583,5.2586,3468.2,3466.4,0.55]
[1721584831783,2.743,3468.9,3467.5,2.88389]
[1721584832025,2.743,3468.9,3466.4,2.3028]
[1721584832026,2.743,3468.9,3467.6,2.88378]
[1721584832193,2.3786,3469.0,3467.6,0.55]
[1721584832382,2.61646,3469.0,3467.6,0.55]
[1721584832585,2.61646,3469.0,3467.8,2.88366]
[1721584832783,2.61646,3469.0,3467.0,2.88425]
[1721584832784,2.88293,3468.7,3467.0,2.88428]
[1721584833024,2.3786,3468.2,3466.2,3.0]
[1721584833224,2.3786,3468.2,3466.1,2.88505]
[1721584833437,0.51216,3468.1,3466.2,3.288505]
[1721584833722,0.51216,3468.1,3466.3,2.8849]
[1721584834026,2.743,3467.7,3465.0,2.3028]
[1721584834186,0.07212114,3467.6,3465.5,2.88557]
[1721584834390,3.16543211,3467.5,3465.5,0.31610804]
[1721584834685,0.28151211,3467.5,3465.9,2.88524]
[1721584835125,3.16543211,3467.5,3466.0,2.88517]
[1721584835302,3.16543211,3467.5,3466.3,2.88491]
[1721584835303,0.28151211,3467.5,3466.3,2.88491]
[1721584835626,2.3786,3468.2,3465.4,2.3028]
[1721584835930,2.3786,3468.9,3466.5,2.3028]
[1721584836084,2.88292,3468.7,3466.8,2.88449]
[1721584836282,2.88292,3468.7,3466.5,2.3028]
[1721584836283,2.88309,3468.6,3466.5,2.3028]
[1721584836482,2.3786,3468.9,3467.6,2.88383]
[1721584836728,2.61646,3468.9,3467.3,2.88404]
[1721584836884,2.3786,3468.8,3467.8,2.88366]
[1721584837083,2.3786,3468.8,3467.4,0.55]
[1721584837333,0.07208546,3468.7,3466.8,3.0]
[1721584837486,5.2615,3468.8,3467.3,2.88403]
[1721584837819,5.2615,3468.8,3466.9,0.55]
[1721584837820,0.62202599,3468.7,3466.8,3.0]
[1721584838127,2.3786,3468.8,3467.8,2.88367]
[1721584838283,2.3786,3469.4,3467.9,0.55]
[1721584838483,7.48,3469.7,3468.5,2.88308]
[1721584838735,2.8822,3469.6,3468.0,3.0]
[1721584838935,0.07206798,3469.5,3468.1,0.55]
[1721584839145,2.4604,3469.1,3467.5,2.88389]
[1721584839303,0.0530545,3469.0,3467.4,2.884]
[1721584839505,0.0530545,3469.0,3467.5,3.0]
[1721584839705,0.0530545,3469.0,3468.2,2.88333]
[1721584839904,0.0530545,3469.0,3467.1,5.4213]
[1721584839905,0.0530545,3469.0,3468.3,3.0]
[1721584840104,2.4604,3470.4,3469.1,2.88258]
[1721584840321,2.4604,3470.4,3468.8,2.88281]
[1721584840539,2.4604,3470.4,3468.4,0.3]
[1721584840540,2.4604,3470.4,3468.9,0.55]
[1721584840692,2.4604,3470.4,3469.6,2.88216]
[1721584840891,5.2034,3471.0,3469.3,2.88234]
[1721584841143,0.072046,3470.9,3468.9,0.55]
[1721584841293,5.62464,3470.3,3467.5,2.4213]
[1721584841634,2.88223,3469.6,3467.6,0.55]
[1721584841942,2.88223,3469.6,3467.5,2.4213]
[1721584841943,2.4604,3469.6,3467.5,2.4213]
[1721584842231,2.4604,3469.6,3467.3,2.88404]
[1721584842232,0.07206935,3469.5,3467.3,2.88404]
[1721584842456,0.07206935,3469.5,3467.5,2.88389]
[1721584842457,2.88251,3469.2,3467.5,2.88389]
[1721584842600,2.88243,3469.3,3467.6,2.88383]
[1721584842797,2.88243,3469.3,3467.3,0.44286483]
[1721584842798,0.25324694,3469.4,3467.9,2.88358]
[1721584843125,0.25324694,3469.4,3467.9,2.8835]
[1721584843493,2.4604,3470.4,3468.8,2.88278]
[1721584843735,7.48,3471.2,3469.2,2.88249]
[1721584843736,2.88118,3470.8,3469.2,2.88249]
[1721584843931,5.34141,3471.0,3469.3,2.8824]
[1721584844168,2.4604,3471.0,3469.4,0.55]
[1721584844374,2.4604,3471.0,3469.3,3.55]
[1721584844680,2.4604,3471.0,3469.3,0.55]
[1721584844681,2.88119,3470.8,3469.3,0.55]
[1721584844976,2.88127,3470.7,3469.1,0.55]
[1721584845295,5.875564,3471.0,3468.9,3.55]
[1721584845296,2.994534,3471.0,3468.9,3.55]
[1721584845570,2.8804,3471.8,3470.1,2.88175]
[1721584845571,2.7484,3471.7,3470.1,2.88175]
[1721584845770,2.7484,3471.7,3470.2,0.55]
[1721584845771,2.4604,3471.7,3470.2,0.55]
[1721584845980,9.9404,3472.3,3470.6,2.88133]
[1721584846184,9.9404,3472.3,3470.7,0.55]
[1721584846185,2.4604,3472.3,3470.7,0.55]
[1721584846375,0.0530545,3472.2,3470.2,0.55]
[1721584846598,0.25134545,3472.1,3470.7,2.88125]
[1721584846799,0.05304343,3472.0,3470.8,0.55]
[1721584847088,0.05304343,3472.0,3471.1,2.88091]
[1721584847411,0.05304343,3472.0,3470.8,3.43113]
[1721584847412,0.05304343,3472.0,3471.2,2.88084]
[1721584847550,0.05304343,3472.0,3470.2,0.355]
[1721584847551,0.05304343,3472.0,3471.3,0.55]
[1721584847859,2.4604,3473.0,3471.3,0.55]
[1721584848072,0.24604,3472.9,3471.1,3.55]
[1721584848253,7.48,3473.6,3471.1,3.55]
[1721584848603,7.48,3473.6,3472.4,2.87984]
[1721584848750,2.4604,3473.7,3472.3,2.87992]
[1721584849117,2.4604,3473.7,3472.4,3.42981]
[1721584849395,2.4604,3473.7,3472.8,2.87951]
[1721584849690,0.24604,3473.6,3472.7,2.87958]
[1721584849897,0.24604,3473.6,3472.8,2.8795]
[1721584850051,2.87824,3474.4,3472.8,2.87951]
[1721584850365,2.2855,3474.5,3472.4,0.55]
[1721584850704,2.87846,3474.1,3472.3,3.55]
[1721584850850,2.35747571,3474.5,3472.3,0.55]
[1721584850851,0.07198205,3474.0,3472.3,0.55]
[1721584851052,0.5984362,3474.0,3472.1,0.55]
[1721584851251,2.2855,3474.5,3472.8,2.87944]
[1721584851501,2.2855,3474.5,3473.0,2.87934]
[1721584851789,2.2855,3474.5,3472.2,2.88001]
[1721584851790,2.87758,3475.2,3473.4,2.87895]
[1721584851989,2.87758,3475.2,3473.1,2.87918]
[1721584851990,2.2855,3475.3,3473.6,2.87884]
[1721584852305,0.07195134,3475.2,3472.8,5.2716]
[1721584852592,0.07195134,3475.2,3472.9,4.365128]
[1721584852797,0.07195134,3475.2,3472.9,1.365128]
[1721584853104,2.2855,3475.3,3474.0,2.87852]
[1721584853309,10.35695,3475.9,3474.2,2.8783]
[1721584853510,2.87695,3475.9,3474.3,2.87827]
[1721584853809,7.9054,3476.0,3474.3,3.42826]
[1721584853982,2.87695,3475.9,3474.3,3.42826]
[1721584854184,0.07194579,3475.9,3472.9,0.815128]
[1721584854522,5.87701,3475.9,3472.9,3.0]
[1721584854813,5.0285,3476.0,3474.5,2.87808]
[1721584854814,0.05085149,3475.8,3474.5,2.87808]
[1721584855027,0.05085149,3475.8,3473.9,3.0]
[1721584855321,2.87746,3475.3,3474.0,0.55]
[1721584855529,2.87787,3474.8,3473.2,2.87918]
[1721584855820,0.287787,3474.7,3472.8,2.2716]
[1721584855986,0.05085149,3474.8,3473.1,2.87923]
[1721584856187,0.05085149,3474.8,3473.6,2.87882]
[1721584856495,5.16344,3474.7,3473.0,2.87935]
[1721584856702,5.16344,3474.7,3473.1,2.87925]
[1721584857014,2.92892149,3474.6,3472.7,2.87957]
[1721584857216,2.92892149,3474.6,3471.9,2.88024]
[1721584857217,3.32249021,3474.5,3471.9,2.88024]
[1721584857511,3.32249021,3474.5,3471.2,2.2716]
[1721584857512,0.05086239,3474.4,3472.5,2.87975]
[1721584857812,0.05086239,3474.4,3471.2,2.2716]
[1721584857813,0.05086239,3474.4,3471.8,2.88031]
[1721584857985,0.05086239,3474.4,3471.6,2.88051]
[1721584857986,2.87911,3473.3,3471.6,2.88051]
[1721584858192,0.05087319,3473.3,3471.6,2.88051]
[1721584858400,2.93006319,3473.2,3471.4,2.88067]
[1721584858687,0.34387951,3473.1,3471.2,2.88079]
[1721584858880,2.2855,3473.7,3471.2,2.88079]
[1721584858881,0.05087319,3473.0,3471.2,2.88079]
[1721584859087,0.05087319,3473.0,3470.5,2.4047]
[1721584859286,0.05087319,3473.0,3472.1,2.88007]
[1721584859518,0.05087319,3473.0,3472.2,2.88001]
[1721584859815,0.05087319,3473.0,3471.3,2.88075]
[1721584860027,0.05087319,3473.0,3472.9,2.87943]
[1721584860177,2.87825,3474.4,3472.1,3.0]
[1721584860520,9.9706,3474.6,3472.9,2.87942]
[1721584860687,2.4906,3474.6,3473.0,0.55]
[1721584860897,2.4906,3474.6,3473.2,2.87918]
[1721584861095,2.87,3475.2,3474.1,2.87844]
[1721584861326,2.4906,3475.3,3474.2,2.87835]
[1721584861624,2.4906,3475.3,3474.0,2.87852]
[1721584861778,2.87763,3475.1,3473.3,3.55]
[1721584861978,0.07195844,3475.1,3473.4,3.0]
[1721584862172,0.25625584,3475.1,3473.5,3.4289]
[1721584862373,0.25625584,3475.1,3473.5,0.55]
[1721584862686,2.4906,3475.3,3473.9,2.87855]
[1721584862877,2.4906,3475.3,3474.4,2.87818]
[1721584863078,2.4906,3476.2,3474.5,0.55]
[1721584863277,2.4906,3476.2,3474.6,2.87797]
[1721584863483,2.4906,3476.2,3474.7,0.55]
[1721584863719,2.4906,3476.2,3474.5,3.42809]
[1721584863720,0.24906,3476.1,3474.8,2.87785]
[1721584863931,0.24906,3476.1,3474.9,0.55]
[1721584864076,0.24906,3476.1,3475.1,2.87759]
[1721584864276,0.24906,3476.1,3474.5,0.55]
[1721584864529,0.273966,3476.0,3474.5,0.55]
[1721584864692,2.4906,3476.9,3474.7,2.87786]
[1721584864902,2.4906,3476.9,3475.6,2.87719]
[1721584865221,2.4906,3476.9,3475.6,2.87715]
[1721584865417,2.4906,3476.9,3475.5,2.87727]
[1721584865623,0.24906,3476.8,3475.6,0.55]
[1721584866026,0.24906,3476.8,3474.8,3.0]
[1721584866027,0.24906,3476.8,3475.5,2.87727]
[1721584866226,0.24906,3476.8,3475.6,3.4272]
[1721584866381,0.24906,3476.8,3475.6,2.8772]
[1721584866581,0.24906,3476.8,3475.7,0.55]
[1721584866905,0.273966,3476.7,3475.1,2.87761]
[1721584867110,0.273966,3476.7,3475.4,2.87736]
[1721584867296,0.273966,3476.7,3475.5,0.55]
[1721584867498,0.273966,3476.7,3475.2,3.55]
[1721584867826,0.273966,3476.7,3474.5,2.87808]
[1721584867827,2.87656,3476.4,3474.5,2.87808]
[1721584867998,2.8772,3475.6,3473.4,2.87895]
[1721584868203,0.07194531,3475.5,3473.0,2.87932]
[1721584868430,2.87794,3474.7,3473.1,2.87924]
[1721584868725,2.87836,3474.3,3472.5,2.87973]
[1721584868928,0.07197331,3474.2,3472.3,2.87993]
[1721584869126,2.4906,3474.6,3473.2,2.87918]
[1721584869327,7.48,3475.3,3472.3,0.576007]
[1721584869547,7.48,3475.3,3474.1,2.87842]
[1721584869721,2.4906,3475.4,3474.0,2.87851]
[1721584870222,2.87756,3475.2,3473.5,3.0]
[1721584870386,2.87845,3474.1,3472.3,0.576007]
[1721584870586,2.87845,3474.1,3471.7,2.4047]
[1721584870587,0.07197608,3474.0,3472.2,2.88]
[1721584870823,2.4906,3474.1,3473.0,2.87935]
[1721584871126,0.0719705,3474.0,3472.2,2.88001]
[1721584871637,0.0719705,3474.0,3471.6,2.88046]
[1721584871840,3.0719705,3474.0,3471.6,2.88046]
[1721584872126,0.561622,3473.9,3471.7,0.3168535]
[1721584872286,2.87905,3473.4,3471.7,2.88037]
[1721584872487,2.87894,3473.5,3471.7,2.88042]
[1721584872681,0.07199132,3473.8,3471.4,3.168745]
[1721584872925,0.07199132,3473.8,3472.0,2.88015]
[1721584872926,2.8787,3473.8,3472.0,2.88015]
[1721584873128,0.561622,3473.9,3471.4,0.288075]
[1721584873325,5.87853,3474.0,3472.0,2.88016]
[1721584873326,3.38873016,3473.8,3472.0,2.88016]
[1721584873630,3.38873016,3473.8,3471.5,2.88059]
[1721584873631,0.51003016,3473.8,3472.5,2.87973]
[1721584873934,0.51003016,3473.8,3472.1,3.0]
[1721584873935,2.4906,3474.1,3472.9,2.87938]
[1721584874141,2.4906,3474.9,3473.4,2.87901]
[1721584874288,2.4906,3474.9,3473.5,0.55]
[1721584874634,5.3678,3475.6,3474.0,2.87852]
[1721584874789,5.3678,3475.6,3474.1,0.55]
[1721584874987,2.87728,3475.5,3474.1,0.55]
[1721584875308,0.07194602,3475.4,3473.1,2.87926]
[1721584875547,0.07194602,3475.4,3472.5,2.87968]
[1721584875548,2.4906,3474.5,3472.5,2.87968]
[1721584875696,2.87845,3474.1,3472.5,2.87976]
[1721584875891,2.4906,3474.5,3473.1,2.87925]
[1721584876125,0.24906,3474.4,3471.8,3.034]
[1721584876412,0.24906,3474.4,3472.9,2.87943]
[1721584876604,3.12727,3474.4,3472.9,2.87943]
[1721584876941,6.034,3475.1,3472.0,5.2848]
[1721584876942,2.4906,3475.3,3472.0,5.4387]
[1721584877102,2.4906,3475.3,3473.8,2.87869]
[1721584877304,2.4906,3475.3,3473.9,0.55]
[1721584877489,2.4906,3475.3,3474.0,2.87844]
[1721584877689,2.4906,3475.3,3474.2,2.8783]
[1721584877884,2.73966,3475.3,3474.2,2.8783]
[1721584878085,2.4906,3475.3,3474.3,3.42827]
[1721584878331,2.4906,3476.0,3474.5,2.87811]
[1721584878631,2.4906,3476.0,3474.6,3.428]
[1721584878846,2.4906,3476.0,3474.6,0.55]
[1721584879032,2.4057,3476.8,3474.8,2.87782]
[1721584879239,2.4057,3476.8,3474.6,0.55]
[1721584879240,3.16076246,3476.7,3474.6,0.55]
[1721584879391,2.87663,3476.3,3474.4,0.55]
[1721584879724,3.29405246,3476.7,3474.9,2.87776]
[1721584879942,0.41776246,3476.7,3475.0,3.55]
[1721584880159,2.4057,3476.8,3475.4,2.87736]
[1721584880373,2.87629,3476.7,3475.5,0.55]
[1721584880656,2.4057,3476.8,3475.1,2.8776]
[1721584880816,2.4057,3476.8,3475.0,3.55]
[1721584880817,2.87629,3476.7,3475.2,6.42752]
[1721584881017,2.4057,3476.8,3475.3,3.0]
[1721584881018,0.528199,3476.6,3475.3,3.0]
[1721584881217,5.28141,3477.4,3475.6,2.87717]
[1721584881417,2.4057,3477.4,3475.3,3.0]
[1721584881642,2.4057,3477.4,3475.8,2.87703]
[1721584881949,5.4057,3477.4,3475.9,0.55]
[1721584882169,5.28143,3477.4,3475.7,0.55]
[1721584882318,2.4057,3477.4,3475.7,0.55]
[1721584882652,2.4057,3477.4,3475.7,3.4271]
[1721584882865,2.87612,3477.0,3475.7,0.55]
[1721584883027,0.07191621,3476.9,3475.7,0.55]
[1721584883359,2.87647,3476.5,3474.5,2.87807]
[1721584883566,2.87647,3476.5,3474.0,2.3496]
[1721584883567,5.51163255,3476.4,3474.2,2.87829]
[1721584883744,5.51163255,3476.4,3474.3,2.87826]
[1721584883745,2.87695,3475.9,3474.3,2.87826]
[1721584884056,8.91069,3476.3,3474.4,2.87819]
[1721584884258,0.77686354,3476.2,3473.6,5.91285]
[1721584884467,0.77686354,3476.2,3473.9,2.87857]
[1721584884671,2.4057,3476.4,3475.2,2.87747]
[1721584884874,2.4057,3476.4,3474.1,5.3836]
[1721584885018,2.4057,3476.4,3475.3,2.87744]
[1721584885221,2.4057,3476.4,3475.1,2.87761]
[1721584885527,2.4057,3476.4,3475.2,3.4275]
[1721584885727,0.31249374,3476.3,3474.2,3.0]
[1721584885964,0.31249374,3476.3,3473.5,2.3496]
[1721584886261,0.31249374,3476.3,3474.3,2.87826]
[1721584886262,2.87692,3476.0,3474.3,2.87826]
[1721584886560,2.87695,3475.9,3474.3,2.87826]
[1721584886722,3.24057,3476.3,3473.5,2.3496]
[1721584886922,2.4057,3476.4,3473.7,3.034]
[1721584886923,0.564627,3476.2,3473.7,3.034]
[1721584887220,2.4057,3476.4,3475.0,2.87761]
[1721584887674,0.88329498,3477.7,3475.3,2.87737]
[1721584887878,2.8762,3476.9,3475.4,2.87736]
[1721584888203,2.87648,3476.5,3474.3,3.0]
[1721584888362,2.87648,3476.5,3474.4,0.85]
[1721584888363,0.287648,3476.4,3474.4,0.85]
[1721584888548,0.287648,3476.4,3474.4,3.42814]
[1721584888749,3.0,3477.0,3474.4,0.55]
[1721584888954,3.0,3477.0,3475.1,2.87759]
[1721584888955,0.0719161,3476.9,3475.1,2.87759]
[1721584889282,0.05092865,3476.8,3475.2,0.55]
[1721584889581,0.05092865,3476.8,3475.4,2.87736]
[1721584889750,0.05092865,3476.8,3475.5,3.42727]
[1721584889946,0.05092865,3476.8,3475.3,2.87744]
[1721584890249,2.87649,3476.5,3475.4,0.55]
[1721584890448,2.87649,3476.5,3474.6,3.0]
[1721584890449,2.87629,3476.7,3475.2,2.87752]
[1721584890883,0.05092865,3476.8,3475.2,2.87751]
[1721584891187,2.94821076,3476.7,3474.8,2.87785]
[1721584891433,2.87671,3476.2,3474.6,5.87802]
[1721584891623,2.87654,3476.4,3474.8,2.87783]
[1721584891886,3.22722259,3476.6,3474.9,3.0]
[1721584892082,0.05092865,3476.5,3474.9,3.0]
[1721584892295,0.05092865,3476.5,3475.0,2.87768]
[1721584892458,0.05092865,3476.5,3474.4,3.0]
[1721584892459,0.32272326,3476.4,3474.4,3.0]
[1721584892785,0.05092865,3476.5,3475.2,2.87746]
[1721584892987,2.92737865,3476.5,3475.3,0.55]
[1721584893202,0.05092865,3476.5,3475.3,0.55]
[1721584893699,0.05092865,3476.5,3475.5,2.87727]
[1721584893992,2.98824931,3477.1,3475.3,3.42742]
[1721584893993,2.4057,3477.1,3475.7,2.8771]
[1721584894289,0.58641293,3477.0,3475.4,2.87736]
[1721584894476,2.87623,3476.8,3475.3,0.55]
[1721584894687,2.9482083,3476.7,3475.2,3.55]
[1721584894850,1.16896224,3477.0,3475.3,2.87743]
[1721584895049,1.16896224,3477.0,3475.2,0.55]
[1721584895050,0.58641293,3477.0,3475.7,2.8771]
[1721584895355,2.4057,3477.1,3475.7,2.8771]
[1721584895356,0.35746622,3476.9,3476.1,2.87677]
[1721584895596,2.4057,3477.1,3476.0,2.87683]
[1721584895802,2.4057,3477.1,3476.1,0.55]
[1721584895950,0.58254931,3477.7,3476.4,2.87653]
[1721584896155,2.3726,3477.8,3476.1,0.55]
[1721584896464,2.3726,3477.8,3475.8,3.55]
[1721584896669,0.58303593,3477.7,3476.6,2.87637]
[1721584896910,0.58303593,3477.7,3476.4,2.87653]
[1721584897773,0.07189931,3477.6,3476.1,2.87674]
[1721584898093,0.07189931,3477.6,3475.5,2.8772]
[1721584898094,0.58254931,3477.4,3475.5,2.8772]
[1721584898266,2.87588,3477.2,3475.6,3.0]
[1721584898595,2.87588,3477.2,3475.3,3.0]
[1721584898596,0.07191215,3477.2,3475.3,3.0]
[1721584898770,3.10053942,3477.3,3475.7,2.87711]
[1721584898975,0.07191216,3477.2,3475.5,2.87725]
[1721584899182,2.87612,3476.9,3475.6,3.0]
[1721584899471,2.87612,3476.9,3474.6,2.87799]
[1721584899472,2.4421,3476.7,3473.7,2.3298]
[1721584899672,2.87687,3476.0,3474.3,2.87825]
[1721584899914,0.07194048,3475.9,3474.2,2.87828]
[1721584900077,2.87669,3476.3,3474.5,2.87809]
[1721584900266,0.58254931,3476.5,3475.2,2.87751]
[1721584900467,0.38984733,3476.4,3475.2,2.87751]
[1721584900663,2.87598,3477.1,3475.4,2.87735]
[1721584900894,2.87645,3476.5,3475.0,2.87768]
[1721584901094,2.87645,3476.5,3475.1,3.55]
[1721584901259,0.0719232,3476.4,3475.1,3.0]
[1721584901469,2.87687,3476.0,3474.5,2.87809]
[1721584901814,2.87687,3476.0,3474.0,2.3298]
[1721584901815,5.31832,3476.8,3475.2,2.87745]
[1721584901964,2.4421,3476.8,3475.7,2.8771]
[1721584902166,2.4421,3476.8,3475.7,2.87704]
[1721584902365,0.15282726,3477.3,3475.8,2.87701]
[1721584902671,0.15282726,3477.3,3474.6,3.034]